bitfinex/quotes_SOLUSD_20250318
["timestamp","ask_amount","ask_price","bid_price","bid_amount"]
[1742296621075,36.0338027,124.7,124.69,0.063]
[1742296621383,108.1882135,124.7,124.67,0.063]
[1742296621595,80.1690135,124.68,124.67,0.063]
[1742296622883,16.0338027,124.68,124.67,0.063]
[1742296626071,36.0338027,124.69,124.67,0.063]
[1742296626272,16.0338027,124.69,124.67,0.563]
[1742296626475,16.0338027,124.7,124.67,0.563]
[1742296626678,16.0338027,124.7,124.68,0.5]
[1742296627292,16.0338027,124.71,124.68,0.5]
[1742296627469,16.0338027,124.72,124.69,0.5]
[1742296627789,16.0338027,124.72,124.68,0.5]
[1742296627969,16.0338027,124.72,124.7,0.5]
[1742296630991,16.0338027,124.72,124.69,0.5]
[1742296631194,16.0338027,124.72,124.7,0.5]
[1742296631692,36.0638027,124.73,124.69,7.44]
[1742296631892,36.0638027,124.73,124.7,0.5]
[1742296632871,16.0338027,124.72,124.7,0.5]
[1742296634096,16.0338027,124.72,124.69,7.44]
[1742296634097,16.0638027,124.72,124.69,7.44]
[1742296634270,16.0638027,124.72,124.7,0.5]
[1742296635088,0.03,124.72,124.7,0.5]
[1742296635791,16.0638027,124.72,124.69,7.44]
[1742296636795,16.0638027,124.72,124.7,0.5]
[1742296637090,16.0638027,124.72,124.69,7.44]
[1742296637396,16.0638027,124.72,124.7,0.5]
[1742296638797,16.0638027,124.72,124.69,7.44]
[1742296639401,16.0338027,124.7,124.69,6.94]
[1742296639699,16.0338027,124.7,124.67,0.563]
[1742296640074,16.0338027,124.69,124.67,0.563]
[1742296640274,0.03,124.72,124.67,0.063]
[1742296640275,16.0338027,124.68,124.67,0.063]
[1742296643299,80.1690135,124.68,124.67,0.063]
[1742296643885,88.1895135,124.68,124.67,0.063]
[1742296644091,89.8022135,124.68,124.67,0.063]
[1742296644293,96.7422135,124.68,124.67,0.063]
[1742296644598,96.7422135,124.68,124.66,0.063]
[1742296644599,20.0,124.66,124.65,0.063]
[1742296644906,36.0338027,124.66,124.65,0.063]
[1742296645701,44.0556027,124.66,124.65,0.063]
[1742296646602,36.0338027,124.66,124.65,0.063]
[1742296648602,44.0556027,124.66,124.65,0.063]
[1742296650507,44.0556027,124.66,124.61,0.5]
[1742296650685,16.0338027,124.62,124.61,0.5]
[1742296652110,80.1690135,124.62,124.6,0.063]
[1742296652411,16.0338027,124.61,124.6,0.063]
[1742296656606,16.0338027,124.62,124.6,0.063]
[1742296657406,20.0,124.61,124.6,0.063]
[1742296658029,36.0338027,124.61,124.6,0.063]
[1742296660299,20.0,124.61,124.6,0.063]
[1742296660615,36.0338027,124.61,124.6,0.063]
[1742296665516,16.0338027,124.61,124.6,0.063]
[1742296713142,24.0588027,124.61,124.6,0.063]
[1742296714088,20.0,124.58,124.57,0.063]
[1742296714294,36.0338027,124.58,124.57,0.063]
[1742296719011,20.0,124.58,124.57,0.563]
[1742296720200,36.0338027,124.58,124.57,0.563]
[1742296722002,20.0,124.58,124.57,0.563]
[1742296722180,20.0,124.6,124.59,0.5]
[1742296722372,20.0,124.6,124.58,0.5]
[1742296722577,20.0,124.6,124.59,0.5]
[1742296722799,16.0338027,124.6,124.59,0.5]
[1742296723801,20.0,124.61,124.59,0.5]
[1742296723802,36.0338027,124.61,124.59,0.5]
[1742296725818,16.0338027,124.6,124.59,0.5]
[1742296727614,20.0,124.61,124.59,0.5]
[1742296727799,16.0338027,124.6,124.59,0.5]
[1742296728521,36.0338027,124.61,124.59,0.5]
[1742296729198,20.0,124.61,124.6,0.5]
[1742296730492,36.0338027,124.62,124.6,0.5]
[1742296730692,16.0338027,124.61,124.6,0.5]
[1742296730912,16.0338027,124.61,124.59,0.5]
[1742296731114,16.0338027,124.6,124.59,0.5]
[1742296733614,36.0338027,124.62,124.6,0.5]
[1742296733820,36.0338027,124.62,124.59,0.5]
[1742296734113,36.0338027,124.62,124.6,0.5]
[1742296735823,20.0,124.62,124.6,0.5]
[1742296736822,81.8,124.64,124.62,0.5]
[1742296736993,20.0,124.63,124.62,0.5]
[1742296739619,20.0,124.63,124.61,0.5]
[1742296739810,20.0,124.63,124.62,0.5]
[1742296740626,16.0968027,124.65,124.62,0.5]
[1742296740923,0.063,124.63,124.62,0.5]
[1742296742429,16.0968027,124.63,124.62,0.5]
[1742296743905,0.063,124.63,124.62,0.5]
[1742296744330,0.063,124.63,124.6,0.5]
[1742296744730,0.063,124.63,124.62,0.5]
[1742296760225,0.063,124.63,124.62,16.5338027]
[1742296766050,0.063,124.63,124.62,0.5]
[1742296771971,36.0968027,124.63,124.6,0.03]
[1742296772255,16.0338027,124.61,124.6,0.03]
[1742296776240,16.0968027,124.61,124.6,0.03]
[1742296778564,0.063,124.61,124.6,0.53]
[1742296779155,0.063,124.61,124.6,35.63993627]
[1742296801943,0.063,124.61,124.6,247.91993627]
[1742296803839,0.063,124.61,124.6,386.01993627]
[1742296806743,0.063,124.61,124.6,173.73993627]
[1742296808861,0.063,124.63,124.62,19.57613357]
[1742296809027,0.063,124.63,124.62,99.74514707]
[1742296810047,0.063,124.63,124.62,35.60993627]
[1742296812562,0.063,124.63,124.62,19.57613357]
[1742296812744,0.063,124.63,124.62,26.49613357]
[1742296812945,0.063,124.63,124.62,26.353972]
[1742296813261,0.063,124.63,124.62,26.49613357]
[1742296814569,0.063,124.63,124.62,7.42]
[1742296817156,0.063,124.63,124.62,42.52993627]
[1742296817375,0.063,124.63,124.62,42.10345156]
[1742296817579,0.063,124.63,124.62,42.52993627]
[1742296821681,0.063,124.63,124.62,26.49613357]
[1742296827763,0.063,124.63,124.62,42.52993627]
[1742296829773,0.063,124.63,124.62,106.66514707]
[1742296829994,0.063,124.63,124.62,252.04138963]
[1742296830166,0.063,124.63,124.62,250.83844707]
[1742296830369,0.063,124.65,124.64,0.64216157]
[1742296830567,0.063,124.65,124.64,173.70993627]
[1742296841692,0.063,124.65,124.64,485.70993627]
[1742296841877,0.03,124.72,124.71,19.57613357]
[1742296842995,0.03,124.72,124.71,19.14964886]
[1742296843192,0.03,124.72,124.71,19.57613357]
[1742296843370,0.03,124.72,124.71,35.60993627]
[1742296851587,0.03,124.72,124.71,19.57613357]
[1742296852202,0.03,124.72,124.71,35.60993627]
[1742296855005,0.03,124.72,124.71,19.57613357]
[1742296860491,0.03,124.72,124.71,19.14964886]
[1742296860700,0.03,124.72,124.71,0.5]
[1742296860906,16.0638027,124.72,124.71,0.5]
[1742296861213,17.6673027,124.72,124.71,0.5]
[1742296864320,17.6673027,124.72,124.69,0.5]
[1742296864498,16.0338027,124.7,124.67,0.5]
[1742296864701,16.0338027,124.68,124.67,0.5]
[1742296866114,17.7002027,124.68,124.67,0.5]
[1742296867010,1.6664,124.68,124.67,0.5]
[1742296870024,16.0338027,124.69,124.67,0.5]
[1742296871006,16.0338027,124.68,124.67,0.5]
[1742296871826,16.0338027,124.69,124.67,0.5]
[1742296872522,16.0338027,124.69,124.68,0.5]
[1742296873828,16.0338027,124.69,124.67,0.5]
[1742296874131,16.0338027,124.69,124.65,0.063]
[1742296874132,16.0338027,124.69,124.68,0.5]
[1742296874305,16.0338027,124.69,124.67,0.5]
[1742296875311,16.0338027,124.68,124.67,0.5]
[1742296875829,16.0338027,124.68,124.66,0.5]
[1742296876030,16.0338027,124.68,124.65,0.563]
[1742296876031,16.0338027,124.67,124.65,0.563]
[1742296876330,16.0338027,124.66,124.65,0.563]
[1742296877527,16.0338027,124.66,124.65,0.063]
[1742296879828,16.0338027,124.66,124.63,0.063]
[1742296880031,16.0338027,124.64,124.63,0.063]
[1742296882139,16.0338027,124.65,124.64,0.5]
[1742296886020,16.0338027,124.66,124.65,0.5]
[1742296886628,16.0638027,124.67,124.65,0.5]
[1742296887537,16.0638027,124.67,124.66,0.5]
[1742296887735,0.03,124.67,124.66,0.5]
[1742296887939,0.03,124.67,124.66,19.57613357]
[1742296888123,0.03,124.67,124.66,35.60993627]
[1742296891225,0.03,124.67,124.66,19.57613357]
[1742296891562,0.03,124.67,124.66,35.60993627]
[1742296892062,0.03,124.67,124.66,19.57613357]
[1742296896128,0.03,124.67,124.66,0.5]
[1742296899039,0.03,124.67,124.66,19.57613357]
[1742296900658,16.0638027,124.67,124.66,0.5]
[1742296901066,0.03,124.67,124.66,0.5]
[1742296909573,0.03,124.67,124.66,19.57613357]
[1742296909868,0.03,124.67,124.66,0.5]
[1742296910768,16.0638027,124.67,124.66,0.5]
[1742296912078,0.03,124.67,124.66,0.5]
[1742296913859,16.0638027,124.67,124.66,0.5]
[1742296916568,16.0638027,124.67,124.65,0.563]
[1742296916770,16.0338027,124.66,124.65,0.063]
[1742296917968,16.0338027,124.66,124.65,0.563]
[1742296925472,20.03,124.67,124.66,0.5]
[1742296925670,16.0638027,124.67,124.66,0.5]
[1742296927378,16.0638027,124.67,124.65,0.563]
[1742296927578,16.0638027,124.67,124.66,0.5]
[1742296928193,0.03,124.67,124.66,0.5]
[1742296935784,16.0638027,124.67,124.65,0.563]
[1742296936104,36.0338027,124.66,124.65,0.063]
[1742296939509,36.0338027,124.66,124.65,0.563]
[1742296939810,36.0338027,124.66,124.65,0.063]
[1742296940690,36.0338027,124.66,124.65,0.563]
[1742296941003,36.0338027,124.66,124.65,0.063]
[1742296942003,36.0338027,124.66,124.65,0.563]
[1742296944308,36.0338027,124.66,124.65,0.063]
[1742296946502,36.0338027,124.66,124.65,0.563]
[1742296947009,36.0338027,124.66,124.65,0.063]
[1742296947705,36.0338027,124.66,124.65,0.563]
[1742296950816,36.0338027,124.66,124.65,0.063]
[1742296951812,16.0338027,124.66,124.65,0.063]
[1742296952808,16.0638027,124.66,124.65,0.063]
[1742296953395,24.0856027,124.66,124.63,0.063]
[1742296953621,16.0338027,124.64,124.63,0.063]
[1742296954293,16.0338027,124.64,124.63,0.563]
[1742296955110,16.0338027,124.65,124.63,0.563]
[1742296955913,16.0338027,124.65,124.64,0.5]
[1742296957205,16.0638027,124.66,124.65,0.5]
[1742296958605,0.03,124.66,124.65,0.78432314]
[1742296959525,0.03,124.66,124.65,35.4677747]
[1742296959907,0.03,124.66,124.65,35.60993627]
[1742296963529,0.03,124.66,124.65,19.57613357]
[1742296963736,0.03,124.66,124.65,0.92648471]
[1742296964413,0.03,124.66,124.65,0.78432314]
[1742296965633,0.03,124.66,124.65,0.92648471]
[1742296965837,0.03,124.66,124.65,7.84648471]
[1742296969047,0.03,124.66,124.65,23.88028741]
[1742296969215,0.03,124.66,124.65,42.52993627]
[1742296970634,0.03,124.66,124.65,26.49613357]
[1742296976344,0.03,124.66,124.65,26.52613357]
[1742296976525,0.03,124.66,124.65,7.87648471]
[1742296982521,0.03,124.66,124.65,42.55993627]
[1742296983536,0.03,124.66,124.65,180.65993627]
[1742296986039,0.03,124.66,124.65,392.87993627]
[1742296988556,0.03,124.66,124.65,393.37993627]
[1742296990234,0.03,124.66,124.65,392.87993627]
[1742296992840,0.03,124.66,124.65,392.59561313]
[1742296993159,0.03,124.66,124.65,392.87993627]
[1742296995769,0.03,124.66,124.65,393.37993627]
[1742296997547,0.03,124.67,124.66,19.07613357]
[1742296997855,0.03,124.67,124.66,174.91240867]
[1742296998061,0.03,124.67,124.66,173.70993627]
[1742297000147,0.03,124.67,124.66,181.49543627]
[1742297000461,0.03,124.67,124.66,181.99543627]
[1742297001560,0.03,124.67,124.66,493.99543627]
[1742297003673,0.03,124.67,124.66,493.49543627]
[1742297003849,0.03,124.67,124.66,493.99543627]
[1742297004168,0.03,124.67,124.66,493.49543627]
[1742297004381,0.03,124.67,124.66,181.49543627]
[1742297004664,0.03,124.67,124.66,181.3532747]
[1742297004846,0.03,124.67,124.66,188.2732747]
[1742297005047,0.03,124.67,124.66,180.62993627]
[1742297005361,0.03,124.67,124.66,180.4877747]
[1742297005556,0.03,124.67,124.66,180.62993627]
[1742297010569,0.03,124.67,124.66,164.31181043]
[1742297011073,0.03,124.67,124.66,164.59613357]
[1742297011254,0.03,124.67,124.66,7.70432314]
[1742297011454,0.03,124.67,124.66,7.84648471]
[1742297011858,0.03,124.67,124.66,0.92648471]
[1742297012058,16.0638027,124.67,124.66,0.5]
[1742297015678,0.03,124.67,124.66,0.5]
[1742297019463,0.03,124.67,124.66,16.96028741]
[1742297019658,0.03,124.67,124.66,35.60993627]
[1742297020455,0.03,124.67,124.66,19.57613357]
[1742297026109,0.03,124.67,124.66,35.63993627]
[1742297042318,0.03,124.67,124.66,35.63993627]
[1742297044727,0.03,124.67,124.66,173.73993627]
[1742297045020,0.03,124.72,124.71,19.57613357]
[1742297045321,0.03,124.72,124.71,42.52993627]
[1742297058109,0.03,124.72,124.71,180.62993627]
[1742297058725,0.03,124.72,124.71,184.59803869]
[1742297058940,0.03,124.72,124.71,180.62993627]
[1742297062912,0.03,124.72,124.71,173.70993627]
[1742297063212,0.03,124.72,124.71,180.60993627]
[1742297067634,0.03,124.72,124.71,42.50993627]
[1742297073738,0.03,124.72,124.71,180.60993627]
[1742297077527,0.03,124.72,124.71,164.57613357]
[1742297079250,0.03,124.72,124.71,26.47613357]
[1742297079831,0.03,124.72,124.71,42.50993627]
[1742297084637,0.03,124.72,124.71,26.47613357]
[1742297086550,0.03,124.72,124.71,7.82648471]
[1742297086753,0.03,124.72,124.71,0.92648471]
[1742297088831,0.03,124.72,124.71,7.82648471]
[1742297099455,0.03,124.72,124.71,0.5]
[1742297099634,16.0638027,124.72,124.71,0.5]
[1742297100349,17.7255027,124.72,124.71,0.5]
[1742297101948,17.7255027,124.72,124.7,0.5]
[1742297102258,16.0338027,124.71,124.7,0.5]
[1742297104961,16.0338027,124.71,124.69,0.5]
[1742297105556,16.0338027,124.71,124.7,0.5]
[1742297110166,16.0338027,124.71,124.69,0.5]
[1742297111066,16.0338027,124.7,124.69,0.5]
[1742297111256,16.0338027,124.7,124.67,0.563]
[1742297111455,16.0338027,124.68,124.67,0.563]
[1742297116470,16.0338027,124.69,124.67,0.563]
[1742297116655,20.0,124.7,124.69,0.5]
[1742297120371,20.03,124.7,124.69,0.5]
[1742297122374,36.0638027,124.7,124.69,0.5]
[1742297123584,36.0638027,124.7,124.68,0.5]
[1742297123783,16.0338027,124.69,124.68,0.5]
[1742297124170,16.0338027,124.69,124.67,0.563]
[1742297124371,16.0338027,124.68,124.67,0.563]
[1742297126389,16.0338027,124.69,124.67,0.563]
[1742297127092,16.0338027,124.69,124.68,0.5]
[1742297128572,36.0638027,124.7,124.68,0.5]
[1742297129885,36.0638027,124.7,124.69,0.5]
[1742297130380,36.0638027,124.7,124.68,0.5]
[1742297131392,36.0638027,124.7,124.69,0.5]
[1742297132491,36.0638027,124.7,124.68,0.5]
[1742297132794,36.0638027,124.7,124.69,0.5]
[1742297133695,36.0638027,124.7,124.68,0.5]
[1742297134379,16.0338027,124.69,124.67,0.563]
[1742297134581,16.0338027,124.69,124.68,0.5]
[1742297138917,16.0338027,124.69,124.67,0.063]
[1742297139214,16.0338027,124.68,124.67,0.063]
[1742297139513,16.0338027,124.68,124.67,0.563]
[1742297140082,16.0338027,124.68,124.67,0.063]
[1742297140582,16.0338027,124.68,124.67,0.563]
[1742297141216,16.0338027,124.68,124.67,0.063]
[1742297141382,16.0338027,124.68,124.67,0.563]
[1742297144311,16.0338027,124.68,124.67,0.063]
[1742297144612,16.0338027,124.68,124.67,0.563]
[1742297148026,16.0338027,124.68,124.67,0.063]
[1742297148196,80.1690135,124.68,124.67,0.063]
[1742297151813,88.1895135,124.68,124.67,0.063]
[1742297151992,80.1690135,124.68,124.67,0.063]
[1742297155315,88.1895135,124.68,124.67,0.063]
[1742297156044,80.1690135,124.68,124.67,0.063]
[1742297156324,88.1895135,124.68,124.67,0.063]
[1742297158912,80.1690135,124.68,124.67,0.063]
[1742297159312,88.1895135,124.68,124.67,0.063]
[1742297165136,80.1690135,124.68,124.67,0.063]
[1742297166236,88.1895135,124.68,124.67,0.063]
[1742297167337,189.06564707,124.68,124.65,0.03]
[1742297167543,16.0338027,124.66,124.65,0.03]
[1742297168615,16.0338027,124.66,124.63,0.063]
[1742297168616,20.0,124.64,124.63,0.063]
[1742297168942,36.0338027,124.64,124.63,0.063]
[1742297169238,100.1690135,124.64,124.61,0.03]
[1742297169434,80.1690135,124.62,124.61,0.03]
[1742297169640,16.0338027,124.62,124.61,0.03]
[1742297178232,22.9338027,124.64,124.61,0.53]
[1742297178440,16.0338027,124.63,124.61,0.53]
[1742297178742,16.0338027,124.63,124.62,0.5]
[1742297178943,16.0338027,124.64,124.62,0.5]
[1742297179241,20.0,124.65,124.62,0.5]
[1742297179545,36.0338027,124.65,124.62,0.5]
[1742297179731,36.0338027,124.65,124.61,2.1773]
[1742297179930,36.0338027,124.65,124.62,0.5]
[1742297181239,16.0338027,124.64,124.62,0.5]
[1742297182145,16.0338027,124.64,124.61,2.1773]
[1742297182359,16.0338027,124.64,124.62,0.5]
[1742297185249,16.0338027,124.64,124.61,0.53]
[1742297185446,16.0338027,124.63,124.61,0.53]
[1742297185645,16.0338027,124.63,124.61,0.03]
[1742297185854,16.0338027,124.62,124.61,0.53]
[1742297186229,16.0338027,124.62,124.61,0.03]
[1742297188455,16.0338027,124.62,124.61,0.03]
[1742297188640,16.0338027,124.63,124.61,0.53]
[1742297188842,16.0338027,124.63,124.62,0.5]
[1742297190658,36.0338027,124.64,124.62,0.5]
[1742297192857,0.063,124.63,124.62,0.5]
[1742297194659,0.063,124.63,124.61,0.53]
[1742297194839,0.063,124.63,124.62,0.5]
[1742297195443,0.063,124.63,124.61,0.53]
[1742297195648,0.063,124.63,124.62,0.5]
[1742297196558,16.0968027,124.63,124.62,0.5]
[1742297198471,0.063,124.63,124.62,0.5]
[1742297202474,0.063,124.63,124.62,0.3]
[1742297204248,0.063,124.63,124.62,0.33]
[1742297209156,0.063,124.63,124.62,0.33]
[1742297209552,16.0968027,124.63,124.62,0.33]
[1742297209955,16.0968027,124.63,124.62,0.03]
[1742297216166,16.0968027,124.63,124.62,0.33]
[1742297216979,16.0968027,124.63,124.62,0.03]
[1742297217166,16.0968027,124.63,124.62,0.33]
[1742297217368,0.063,124.63,124.62,0.33]
[1742297220562,0.063,124.63,124.62,16.79028741]
[1742297220762,0.063,124.63,124.62,0.75648471]
[1742297223100,0.063,124.63,124.62,16.79028741]
[1742297223624,0.063,124.63,124.62,35.43993627]
[1742297223801,0.063,124.63,124.62,37.10243627]
[1742297228089,0.063,124.63,124.62,0.75648471]
[1742297230284,0.063,124.63,124.62,0.33]
[1742297233184,16.0968027,124.63,124.62,0.33]
[1742297233369,16.0968027,124.63,124.62,0.03]
[1742297233575,16.0968027,124.63,124.62,0.33]
[1742297235397,16.0968027,124.63,124.62,0.03]
[1742297240099,24.1205027,124.63,124.62,0.03]
[1742297240304,88.2557135,124.63,124.62,0.03]
[1742297240603,107.1896855,124.63,124.61,0.03]
[1742297240901,87.0690135,124.62,124.61,0.03]
[1742297241306,87.0690135,124.62,124.6,0.03]
[1742297241493,27.149372,124.6,124.59,0.03]
[1742297241697,36.0338027,124.58,124.57,0.063]
[1742297242807,42.9338027,124.58,124.57,0.063]
[1742297246200,36.0338027,124.58,124.57,0.063]
[1742297267711,18.933972,124.57,124.56,0.063]
[1742297267911,99.1029855,124.57,124.56,0.063]
[1742297268919,99.24514707,124.57,124.56,0.063]
[1742297269122,105.62889012,124.57,124.56,0.063]
[1742297269523,113.65649012,124.57,124.56,0.063]
[1742297272233,16.0338027,124.57,124.56,0.063]
[1742297272617,6.9,124.58,124.56,0.063]
[1742297272817,16.0968027,124.59,124.58,0.3]
[1742297275626,16.0968027,124.59,124.57,0.3]
[1742297275938,20.063,124.59,124.58,0.3]
[1742297276940,0.063,124.59,124.58,0.3]
[1742297277252,20.063,124.59,124.58,0.3]
[1742297280335,0.063,124.59,124.58,0.3]
[1742297281231,0.063,124.59,124.57,0.3]
[1742297281433,16.0968027,124.59,124.57,0.3]
[1742297281718,16.0968027,124.59,124.56,0.363]
[1742297281920,16.0968027,124.59,124.57,0.3]
[1742297284727,0.063,124.59,124.58,0.3]
[1742297305560,36.0968027,124.59,124.57,0.3]
[1742297305774,16.0338027,124.58,124.56,0.363]
[1742297305965,16.0338027,124.57,124.56,0.063]
[1742297308777,88.1966135,124.57,124.56,0.063]
[1742297308966,89.8365135,124.57,124.56,0.063]
[1742297309342,89.8365135,124.57,124.54,0.063]
[1742297309343,20.0,124.55,124.54,0.063]
[1742297309652,36.0338027,124.55,124.54,0.063]
[1742297309975,42.9338027,124.55,124.54,0.063]
[1742297313175,61.8677747,124.55,124.54,0.063]
[1742297316378,18.933972,124.54,124.53,0.03]
[1742297316562,34.9677747,124.54,124.53,0.03]
[1742297319766,42.9972747,124.54,124.53,0.03]
[1742297320159,124.7972747,124.54,124.52,0.063]
[1742297320362,16.17596427,124.53,124.52,0.063]
[1742297321571,20.0,124.5,124.49,0.03]
[1742297321753,100.1690135,124.5,124.49,0.03]
[1742297322071,36.0338027,124.5,124.49,0.03]
[1742297322271,100.1690135,124.5,124.49,0.03]
[1742297323472,36.0338027,124.5,124.49,0.03]
[1742297325377,36.0338027,124.5,124.49,0.33]
[1742297326685,36.0338027,124.5,124.49,0.03]
[1742297326859,36.0338027,124.5,124.49,0.33]
[1742297327978,36.0338027,124.5,124.49,0.03]
[1742297328280,36.0338027,124.5,124.49,0.33]
[1742297329267,36.0338027,124.5,124.49,0.03]
[1742297329467,36.0338027,124.5,124.49,0.33]
[1742297330080,36.0338027,124.5,124.49,0.03]
[1742297330281,36.0338027,124.5,124.49,0.33]
[1742297330575,16.0338027,124.5,124.49,0.33]
[1742297330879,152.3000108,124.62,124.61,0.0695]
[1742297331458,171.37614437,124.62,124.61,0.0695]
[1742297331659,164.58485966,124.62,124.61,0.0695]
[1742297332067,180.9029855,124.62,124.61,0.0695]
[1742297332467,116.7677747,124.62,124.61,0.0695]
[1742297332993,180.61866236,124.62,124.61,0.0695]
[1742297333284,180.9029855,124.62,124.61,0.0695]
[1742297335599,116.7677747,124.62,124.61,0.0695]
[1742297336380,116.8307747,124.62,124.61,0.0695]
[1742297339294,180.9659855,124.62,124.61,0.0695]
[1742297346688,189.13244707,124.62,124.61,0.0695]
[1742297348071,189.13244707,124.62,124.61,0.0995]
[1742297352104,20.0,124.59,124.56,0.3]
[1742297352298,16.0338027,124.57,124.56,0.3]
[1742297353089,16.0338027,124.59,124.57,0.3]
[1742297353406,16.0338027,124.59,124.58,0.3]
[1742297354001,16.0338027,124.59,124.57,0.3]
[1742297355704,16.0338027,124.59,124.58,0.3]
[1742297355889,16.0338027,124.59,124.57,0.3]
[1742297356605,16.0338027,124.59,124.58,0.3]
[1742297357610,16.0338027,124.59,124.57,0.3]
[1742297357776,16.0338027,124.59,124.58,0.3]
[1742297359598,20.0,124.58,124.57,0.3]
[1742297359801,36.0338027,124.58,124.57,0.3]
[1742297362091,36.0338027,124.58,124.56,0.33]
[1742297362292,16.0338027,124.57,124.56,0.33]
[1742297364490,36.0338027,124.58,124.57,0.3]
[1742297364984,20.0,124.58,124.57,0.3]
[1742297369613,20.0,124.58,124.56,0.33]
[1742297369808,36.0338027,124.58,124.57,0.3]
[1742297370691,20.0,124.58,124.57,0.3]
[1742297372720,36.0338027,124.58,124.57,0.3]
[1742297373380,36.0338027,124.58,124.56,0.33]
[1742297375221,20.0,124.58,124.57,0.3]
[1742297381314,36.0338027,124.58,124.57,0.3]
[1742297381695,36.0338027,124.58,124.56,0.33]
[1742297382414,36.0338027,124.58,124.56,0.03]
[1742297382415,16.0338027,124.57,124.56,0.03]
[1742297382623,36.0338027,124.58,124.56,0.33]
[1742297382821,36.0338027,124.58,124.57,0.3]
[1742297384727,20.0,124.58,124.57,0.3]
[1742297386621,36.0338027,124.58,124.56,0.03]
[1742297386819,36.0338027,124.58,124.53,0.3]
[1742297386820,20.0,124.54,124.53,0.3]
[1742297387122,36.0338027,124.54,124.53,0.3]
[1742297393325,16.0338027,124.53,124.52,0.3]
[1742297393498,16.0338027,124.53,124.51,0.3]
[1742297393808,16.0338027,124.52,124.51,0.3]
[1742297394315,16.0338027,124.52,124.49,0.33]
[1742297394520,16.0338027,124.51,124.5,0.3]
[1742297394715,16.0338027,124.51,124.49,0.33]
[1742297394899,16.0338027,124.5,124.49,0.33]
[1742297400033,16.0338027,124.5,124.49,0.03]
[1742297400628,16.0338027,124.5,124.49,0.33]
[1742297402331,16.0338027,124.5,124.49,0.03]
[1742297402834,20.0,124.5,124.49,0.03]
[1742297403002,36.0338027,124.5,124.49,0.03]
[1742297405620,100.1690135,124.5,124.49,0.03]
[1742297405811,134.0350855,124.5,124.49,0.03]
[1742297406925,126.0029855,124.5,124.49,0.03]
[1742297407132,134.0350855,124.5,124.49,0.03]
[1742297407310,126.0029855,124.5,124.49,0.03]
[1742297407737,61.8677747,124.5,124.49,0.03]
[1742297407933,42.9338027,124.5,124.49,0.03]
[1742297414324,42.9338027,124.5,124.49,0.33]
[1742297415547,22.9338027,124.5,124.49,0.33]
[1742297416647,20.0,124.51,124.5,0.3]
[1742297416820,36.0338027,124.51,124.5,0.3]
[1742297418766,36.0338027,124.51,124.49,0.33]
[1742297418938,20.0,124.51,124.5,0.3]
[1742297419143,36.0338027,124.51,124.5,0.3]
[1742297422925,36.0338027,124.51,124.49,0.03]
[1742297423125,36.0338027,124.5,124.49,0.33]
[1742297425019,36.0338027,124.5,124.49,0.03]
[1742297425235,16.0338027,124.5,124.49,0.33]
[1742297425737,16.0338027,124.5,124.49,0.03]
[1742297425933,16.0338027,124.5,124.49,0.33]
[1742297426423,65.8345108,124.56,124.49,0.33]
[1742297426424,16.0968027,124.56,124.54,0.3]